bitfinex/quotes_ETHUSD_20260130
["timestamp","ask_amount","ask_price","bid_price","bid_amount"]
[1769774491736,13.31184021,2765.6,2764.5,0.001]
[1769774494064,13.31184021,2765.6,2763.4,12.89295543]
[1769774494065,13.30984021,2765.4,2763.3,1.59242186]
[1769774494258,13.30984021,2765.4,2763.3,14.48537729]
[1769774494756,13.30984021,2765.4,2763.3,1.59242186]
[1769774494959,13.30984021,2765.2,2763.3,1.59242186]
[1769774495275,13.30984021,2765.2,2763.3,16.09242186]
[1769774495649,13.30984021,2765.0,2763.3,16.09242186]
[1769774496234,13.30984021,2765.0,2763.3,1.59242186]
[1769774497331,0.758,2764.9,2763.3,1.59242186]
[1769774497648,12.79083183,2764.7,2763.3,1.59242186]
[1769774499659,12.79083183,2764.5,2763.3,1.59242186]
[1769774500351,0.758,2764.4,2763.3,1.59242186]
[1769774501362,1.40678402,2764.8,2763.3,1.59242186]
[1769774501657,0.758,2764.8,2763.3,15.31952054]
[1769774501850,13.54883183,2764.8,2763.4,14.5]
[1769774502363,13.54883183,2764.8,2763.3,1.59242186]
[1769774503252,13.54883183,2764.8,2763.5,0.001]
[1769774503567,12.79283183,2764.6,2763.5,0.001]
[1769774503868,0.758,2764.5,2763.5,0.001]
[1769774504433,0.758,2764.5,2763.3,1.59242186]
[1769774504434,12.79083183,2764.4,2763.3,1.59242186]
[1769774504966,0.002,2764.6,2763.4,13.72709868]
[1769774505141,0.002,2764.6,2763.6,13.72709868]
[1769774505342,0.002,2764.6,2763.3,1.59242186]
[1769774505544,12.79283183,2764.6,2763.3,1.59242186]
[1769774505774,13.55083183,2764.6,2763.3,1.59242186]
[1769774506136,12.79283183,2764.6,2763.3,1.59242186]
[1769774506361,2.03728318,2764.5,2763.3,1.59242186]
[1769774506562,1.27928318,2764.5,2763.3,1.59242186]
[1769774506772,2.03728318,2764.5,2763.3,1.59242186]
[1769774506933,1.27928318,2764.5,2763.3,1.59242186]
[1769774507136,0.002,2764.6,2763.3,15.31952054]
[1769774507940,0.002,2764.6,2763.3,16.98222798]
[1769774508372,0.002,2765.9,2764.0,13.72709868]
[1769774508543,12.79283183,2765.8,2764.0,13.72709868]
[1769774509165,12.79083183,2765.5,2763.6,13.72709868]
[1769774509392,12.79083183,2765.5,2763.3,1.59242186]
[1769774509393,12.79083183,2765.5,2763.8,13.72709868]
[1769774509573,1.35508318,2765.4,2763.8,13.72709868]
[1769774510166,14.14591501,2765.4,2763.8,13.72709868]
[1769774515287,14.14591501,2765.4,2763.3,5.21115764]
[1769774515288,14.14591501,2765.4,2763.3,1.59242186]
[1769774515466,12.79083183,2765.2,2764.0,0.001]
[1769774515665,12.79283183,2765.2,2764.0,0.001]
[1769774515901,12.79083183,2765.0,2764.0,0.001]
[1769774516098,13.54883183,2764.9,2764.0,0.001]
[1769774516395,13.54883183,2764.9,2763.3,1.59242186]
[1769774519297,12.79083183,2764.3,2762.3,13.72709868]
[1769774519473,12.79083183,2764.1,2762.3,13.72709868]
[1769774519680,12.79083183,2764.5,2762.6,13.72709868]
[1769774519891,1.35488318,2764.8,2763.0,13.72709868]
[1769774520073,12.79283183,2765.2,2763.3,14.63181296]
[1769774520388,13.54883183,2765.1,2763.3,13.72709868]
[1769774521099,12.79083183,2765.1,2763.3,14.63181068]
[1769774521399,0.002,2765.2,2763.3,14.63181068]
[1769774521904,12.79083183,2765.1,2763.3,13.72709868]
[1769774523304,12.79083183,2765.1,2763.0,14.48509868]
[1769774523604,12.79083183,2765.1,2763.0,15.38990908]
[1769774523778,12.79083183,2765.1,2763.0,14.48509868]
[1769774524181,12.79083183,2765.1,2763.0,13.72709868]
[1769774524776,12.79083183,2765.1,2763.0,14.63190984]
[1769774524972,12.79083183,2765.1,2763.0,13.72709868]
[1769774525189,12.79083183,2765.1,2763.0,14.6319096]
[1769774525913,12.79083183,2765.1,2763.0,14.63191135]
[1769774526098,12.79083183,2765.1,2763.0,13.72709868]
[1769774527906,12.79083183,2765.1,2763.2,0.001]
[1769774528718,12.79083183,2765.1,2763.2,13.08119893]
[1769774529279,12.79083183,2765.1,2763.2,0.001]
[1769774530012,0.758,2765.0,2763.2,0.001]
[1769774530191,13.77593257,2764.9,2763.2,0.001]
[1769774530771,13.77593257,2764.9,2763.2,13.08119893]
[1769774531198,0.758,2764.8,2763.2,13.08119893]
[1769774531901,0.758,2764.8,2763.4,13.08019893]
[1769774533685,13.77593257,2764.9,2763.4,13.08019893]
[1769774533918,0.758,2764.8,2763.4,13.08019893]
[1769774534116,13.77593257,2764.9,2763.4,13.08019893]
[1769774534307,13.77593257,2764.9,2763.4,13.98487924]
[1769774534503,0.758,2765.0,2763.4,13.98487924]
[1769774535922,0.002,2765.2,2763.6,13.08019893]
[1769774536133,0.002,2765.2,2763.8,13.08019893]
[1769774536617,0.002,2765.4,2764.3,13.08019893]
[1769774536821,0.002,2765.6,2764.6,13.08019893]
[1769774537038,0.002,2765.6,2764.6,13.83819893]
[1769774539425,0.002,2764.9,2764.8,13.08019893]
[1769774539622,0.00031584,2765.8,2764.9,13.08019893]
[1769774539951,3.96e-06,2765.1,2764.9,13.08019893]
[1769774540234,0.00031584,2765.8,2764.9,13.08019893]
[1769774541930,0.00031584,2765.8,2764.9,13.9843905]
[1769774543316,0.002,2766.0,2765.0,13.08019893]
[1769774543516,0.002,2766.3,2765.1,13.08019893]
[1769774543829,0.002,2766.3,2765.2,0.758]
[1769774544334,0.002,2766.3,2765.0,13.08019893]
[1769774544537,0.002,2766.3,2765.1,0.758]
[1769774544938,13.77793257,2766.3,2764.7,13.08019893]
[1769774545137,13.77793257,2766.3,2764.7,13.83819893]
[1769774546148,13.77793257,2766.3,2764.5,0.758]
[1769774546149,13.77593257,2766.1,2764.5,0.758]
[1769774546707,13.77593257,2766.1,2764.5,13.83819893]
[1769774546912,0.758,2766.2,2764.8,13.08019893]
[1769774548641,0.002,2766.3,2764.8,13.08019893]
[1769774549214,0.002,2766.3,2764.8,13.98442192]
[1769774550515,0.002,2766.3,2764.9,13.83819893]
[1769774550717,0.002,2766.3,2765.0,0.758]
[1769774551039,0.002,2766.3,2765.0,13.83819893]
[1769774551837,0.002,2766.3,2765.0,13.83919893]
[1769774552033,0.002,2766.1,2765.0,13.83919893]
[1769774553253,0.002,2766.1,2765.0,14.7433573]
[1769774553962,0.002,2766.1,2765.0,13.83919893]
[1769774554619,0.002,2766.1,2765.0,14.74335602]
[1769774554823,0.002,2766.1,2765.0,14.74335801]
[1769774558641,0.002,2766.6,2765.0,14.74335801]
[1769774558642,0.002,2766.6,2765.4,13.27432146]
[1769774558822,0.002,2766.6,2765.6,13.27432146]
[1769774559027,0.002,2766.6,2765.8,13.27432146]
[1769774560328,0.002,2766.8,2765.8,13.27432146]
[1769774560747,0.002,2766.8,2766.0,13.27432146]
[1769774561848,0.002,2767.5,2766.1,13.27432146]
[1769774562843,0.002,2767.5,2766.2,14.17808836]
[1769774563039,0.002,2767.5,2766.3,0.758]
[1769774563758,0.002,2767.5,2766.3,14.03232146]
[1769774564654,0.00100396,2767.5,2766.5,13.27432146]
[1769774564832,0.001,2766.8,2766.7,13.27432146]
[1769774565031,0.0020099,2767.6,2766.7,13.27432146]
[1769774565461,0.002,2768.0,2766.6,0.90363623]
[1769774565462,0.002,2768.0,2766.8,13.27432146]
[1769774565660,0.002,2768.0,2767.0,13.27432146]
[1769774566227,0.002,2768.0,2766.9,0.758]
[1769774566830,0.002,2768.0,2767.0,0.9035056]
[1769774567267,0.002,2768.0,2767.0,14.17782706]
[1769774567633,13.11325261,2768.0,2766.6,0.90360742]
[1769774567832,13.11325261,2768.0,2766.4,14.79038505]
[1769774568033,0.002,2768.0,2766.9,0.90353105]
[1769774568269,0.002,2768.0,2766.8,3.61418377]
[1769774568270,0.002,2768.0,2767.0,0.758]
[1769774568946,13.11325261,2768.0,2767.0,0.758]
[1769774569259,0.002,2768.0,2767.0,0.758]
[1769774569459,13.11325261,2768.0,2766.6,13.27432146]
[1769774569662,13.11325261,2768.0,2766.7,0.90358246]
[1769774569860,13.11325261,2768.0,2766.6,13.27432146]
[1769774570235,13.11325261,2768.0,2766.5,0.758]
[1769774570431,13.11325261,2768.0,2766.8,0.90356558]
[1769774570861,13.11325261,2768.0,2766.6,0.90363623]
[1769774571040,13.11325261,2768.0,2766.5,1.66164434]
[1769774571243,0.002,2768.0,2766.6,13.27432146]
[1769774571942,13.11325261,2768.0,2766.6,13.27432146]
[1769774573063,13.11325261,2768.0,2766.7,0.90360357]
[1769774573231,13.11325261,2768.0,2766.6,13.27432146]
[1769774573437,13.11325261,2768.0,2766.5,0.758]
[1769774573939,13.11325261,2768.0,2766.4,0.75806359]
[1769774574440,13.11325261,2768.0,2766.4,1.66175529]
[1769774574646,13.11325261,2768.0,2766.4,0.75806359]
[1769774576862,13.11125261,2767.7,2766.4,0.75806359]
[1769774581188,13.11125261,2767.7,2765.5,0.90397713]
[1769774581360,13.11125261,2767.7,2765.5,13.27432146]
[1769774581787,13.11125261,2767.5,2765.2,0.66553355]
[1769774582086,3.61497975,2767.8,2765.2,14.84394737]
[1769774582087,13.11125261,2767.3,2765.2,14.84394737]
[1769774582388,13.11125261,2767.3,2765.2,13.93985501]
[1769774583582,13.11125261,2767.1,2765.2,13.93985501]
[1769774583795,13.11125261,2767.1,2765.2,14.84394671]
[1769774584372,13.11125261,2767.1,2765.2,13.93985501]
[1769774584806,13.11125261,2767.1,2765.2,0.66553355]
[1769774586098,13.11125261,2766.9,2765.2,0.66553355]
[1769774588802,13.11125261,2766.9,2765.4,0.001]
[1769774590777,12.60972322,2766.7,2765.4,0.001]
[1769774591484,12.60972322,2766.7,2765.2,0.66553355]
[1769774592083,12.60972322,2766.7,2765.0,0.001]
[1769774593411,12.60972322,2766.5,2765.0,0.001]
[1769774593613,12.60972322,2766.3,2765.0,0.001]
[1769774593816,12.60972322,2766.1,2765.0,0.001]
[1769774595479,12.60972322,2766.1,2763.6,13.14591735]
[1769774595684,12.60972322,2765.9,2763.8,13.14591735]
[1769774596300,13.36772322,2765.8,2764.0,13.14591735]
[1769774596614,14.70449554,2765.7,2764.2,13.14591735]
[1769774596819,0.758,2765.6,2764.2,13.14591735]
[1769774597520,13.36772322,2765.6,2763.9,13.14591735]
[1769774598014,12.60972322,2765.6,2763.9,13.14591735]
[1769774598213,12.60972322,2765.4,2764.0,14.5]
[1769774598383,14.70449554,2765.3,2764.0,14.5]
[1769774598811,1.33677232,2765.3,2764.1,13.14591735]
[1769774598980,0.758,2765.6,2764.1,13.14591735]
[1769774600310,0.758,2765.6,2764.3,13.14591735]
[1769774601089,0.758,2765.6,2764.4,14.5]
[1769774602030,12.60972322,2765.5,2764.3,0.001]
[1769774604197,12.60972322,2765.5,2764.5,0.02922802]
[1769774604401,12.60972322,2765.3,2764.4,0.02922802]
[1769774604790,12.60972322,2765.3,2764.3,0.001]
[1769774604991,12.60972322,2765.3,2764.4,0.02922802]
[1769774605212,12.60972322,2765.3,2764.3,0.001]
[1769774607331,13.36772322,2765.2,2764.3,0.001]
[1769774607496,1.33677232,2765.1,2764.3,0.001]
[1769774608119,13.94649554,2765.1,2764.3,0.001]
[1769774610328,13.94649554,2765.1,2763.5,13.14591735]
[1769774610329,13.94649554,2765.1,2763.9,0.02922802]
[1769774610714,13.94649554,2765.1,2763.4,0.02922802]
[1769774610715,12.60972322,2764.9,2763.4,0.02922802]
[1769774610914,12.60972322,2764.7,2763.9,0.02922802]
[1769774611115,12.60972322,2764.5,2763.6,0.02922802]
[1769774611316,12.60972322,2764.5,2763.4,0.02922802]
[1769774611523,12.60972322,2764.5,2763.6,0.02922802]
[1769774611711,12.60972322,2764.5,2763.4,0.02922802]
[1769774611897,12.60972322,2764.3,2763.3,0.53162684]
[1769774612099,12.60972322,2764.3,2763.1,0.02922802]
[1769774612296,12.60972322,2764.3,2763.0,0.02922802]
[1769774612830,12.60972322,2764.3,2762.8,0.02922802]
[1769774613350,0.63028279,2764.2,2762.4,0.02922802]
[1769774613494,13.51411379,2764.3,2762.5,0.02922802]
[1769774613495,12.60972322,2763.9,2762.5,0.02922802]
[1769774613698,0.758,2764.1,2762.5,0.02922802]
[1769774613699,12.60972322,2763.7,2762.5,0.02922802]
[1769774614002,12.60972322,2763.5,2762.5,0.02922802]
[1769774615117,12.60972322,2763.5,2762.2,0.02922802]
[1769774615311,12.60972322,2763.5,2762.3,0.02922802]
[1769774615725,12.60972322,2763.5,2761.9,0.02922802]
[1769774615913,12.60972322,2763.3,2762.1,0.02922802]
[1769774616315,13.10497252,2763.1,2762.2,0.02171788]
[1769774616637,13.10497252,2763.1,2761.9,0.02922802]
[1769774617239,13.10497252,2763.1,2761.1,0.4937817]
[1769774617440,12.8549427,2762.7,2761.2,0.02171788]
[1769774617620,12.8549427,2762.5,2761.2,0.02171788]
[1769774618016,12.8549427,2762.5,2761.4,0.02171788]
[1769774618707,1.28549427,2762.6,2761.4,0.02171788]
[1769774618708,12.8549427,2762.3,2761.4,0.02171788]
[1769774619037,12.8549427,2762.3,2761.3,0.02171788]
[1769774619240,14.14043697,2762.6,2761.6,0.02171788]
[1769774619445,14.14043697,2762.6,2761.8,0.02171788]
[1769774619446,12.8549427,2762.6,2761.8,0.02171788]
[1769774619615,0.759,2762.5,2762.0,0.02171788]
[1769774619940,0.759,2762.5,2761.8,0.02171788]
[1769774620532,12.8549427,2762.4,2761.3,0.02171788]
[1769774620731,1.36139427,2762.3,2761.7,0.02171788]
[1769774620918,0.759,2762.5,2761.7,0.02171788]
[1769774621305,0.759,2762.6,2762.1,0.02171788]
[1769774621506,0.759,2762.5,2762.1,0.02171788]
[1769774621934,0.759,2762.5,2761.9,0.02171788]
[1769774624549,13.6139427,2762.5,2761.5,0.02171788]
[1769774624858,2.12039427,2762.4,2761.8,0.02171788]
[1769774625058,0.759,2762.3,2761.6,0.02171788]
[1769774625269,0.759,2762.2,2761.6,0.02171788]
[1769774625417,0.759,2762.2,2761.1,13.67602659]
[1769774625418,0.759,2762.2,2761.1,13.65430871]
[1769774625620,0.759,2762.2,2761.6,0.001]
[1769774626038,0.002,2762.3,2761.6,0.001]
[1769774626238,0.759,2762.2,2761.6,0.001]
[1769774629338,0.759,2762.1,2761.6,0.001]
[1769774629539,13.6139427,2762.1,2761.1,0.001]
[1769774630732,17.4259427,2762.1,2761.1,0.001]
[1769774631057,14.59753697,2762.0,2761.1,0.001]
[1769774632050,0.759,2761.9,2761.1,0.001]
[1769774632426,13.6139427,2761.9,2761.1,0.001]
[1769774632828,13.6139427,2761.9,2760.7,0.001]
[1769774636236,12.8549427,2761.7,2760.7,0.001]
[1769774636433,12.8549427,2761.5,2760.7,0.001]
[1769774636665,12.8549427,2761.3,2760.7,0.001]
[1769774637263,0.759,2761.2,2760.7,0.001]
[1769774638066,0.759,2761.1,2760.7,0.001]
[1769774638562,14.15067697,2761.6,2760.7,0.001]
[1769774638730,2.1740677,2761.5,2760.9,0.001]
[1769774639056,15.0290104,2761.5,2760.9,0.001]
[1769774640744,0.759,2761.4,2760.9,0.001]
[1769774640943,0.759,2761.4,2761.0,0.02171788]
[1769774641349,0.759,2761.4,2760.9,0.001]
[1769774642077,13.6139427,2761.4,2760.9,0.001]
[1769774642275,1.36139427,2761.3,2760.9,0.001]
[1769774642787,1.36139427,2761.3,2760.7,0.001]
[1769774642788,14.21633697,2761.3,2760.7,0.001]
[1769774644268,0.759,2761.2,2760.7,0.001]
[1769774644872,14.21633697,2761.3,2760.7,0.001]
[1769774645041,2.1806337,2761.2,2760.7,0.001]
[1769774645369,1.4216337,2761.2,2760.7,0.001]
[1769774645548,0.002,2761.7,2761.4,0.02171788]
[1769774645747,0.002,2761.7,2761.6,0.02171788]
[1769774645946,0.761,2761.7,2761.6,0.02171788]
[1769774646152,0.759,2761.7,2761.6,0.02171788]
[1769774646541,0.759,2761.8,2761.4,0.02171788]
[1769774646742,0.759,2761.8,2761.6,0.02171788]
[1769774648668,0.759,2761.8,2761.2,0.02171788]
[1769774648840,0.759,2761.8,2761.4,0.02171788]
[1769774650496,7.179,2761.8,2761.4,0.02171788]
[1769774650943,7.179,2761.8,2761.2,0.02171788]
[1769774651148,7.179,2761.8,2761.5,0.02171788]
[1769774651450,0.30133916,2762.0,2761.6,0.02171788]
[1769774651656,0.30133916,2762.0,2761.3,0.02171788]
[1769774652540,0.30133916,2762.0,2761.1,0.02171788]
[1769774652737,13.7200743,2761.9,2760.8,0.02171788]
[1769774652948,13.7200743,2761.9,2761.1,0.02171788]
[1769774654642,13.7200743,2761.9,2761.3,0.02171788]
[1769774655347,13.7200743,2761.9,2761.1,0.02171788]
[1769774656370,13.7200743,2761.9,2761.3,0.02171788]
[1769774656547,15.12221565,2761.9,2761.3,0.02171788]
[1769774657059,1.40414135,2761.9,2761.5,0.02171788]
[1769774657271,0.002,2761.9,2761.1,0.02171788]
[1769774657578,13.7200743,2761.9,2761.1,0.02171788]
[1769774658072,0.759,2761.8,2761.1,0.02171788]
[1769774658274,13.7200743,2761.9,2761.2,0.02171788]
[1769774658480,0.002,2761.9,2761.4,0.02171788]
[1769774658893,0.002,2761.9,2761.5,0.02171788]
[1769774659596,0.002,2762.3,2761.7,0.02171788]
[1769774659745,0.002,2762.3,2761.9,0.02171788]
[1769774659949,0.002,2762.3,2762.1,0.02171788]
[1769774660554,0.002,2762.3,2761.9,0.02171788]
[1769774660756,0.759,2762.8,2762.2,0.02171788]
[1769774661361,0.002,2763.1,2762.2,0.02171788]
[1769774661682,0.761,2763.1,2762.2,0.02171788]
[1769774661977,0.002,2763.1,2762.4,0.02171788]
[1769774662279,0.002,2763.1,2762.6,0.02171788]
[1769774662481,0.31073643,2763.3,2763.0,0.02171788]
[1769774662658,14.4790743,2763.7,2762.8,0.02171788]
[1769774662853,14.4790743,2763.7,2762.6,0.02171788]
[1769774662854,14.4790743,2763.7,2762.7,0.02171788]
[1769774663864,0.002,2763.7,2762.9,0.02171788]
[1769774664067,0.002,2763.7,2762.5,0.02171788]
[1769774664068,0.002,2763.7,2763.2,0.02171788]
[1769774664770,0.002,2763.7,2763.4,0.02171788]
[1769774664970,14.4770743,2764.3,2763.6,0.02171788]
[1769774666072,13.7180743,2764.4,2763.2,0.02171788]
[1769774666271,13.7180743,2764.4,2763.4,0.02171788]
[1769774666472,13.7180743,2764.2,2763.2,0.02171788]
[1769774666771,13.7180743,2764.2,2763.4,0.02171788]
[1769774667086,13.7180743,2764.2,2763.6,0.02171788]
[1769774668067,0.759,2764.5,2763.7,0.02171788]
[1769774668487,14.4770743,2764.5,2763.4,0.02171788]
[1769774668790,17.10742857,2764.5,2763.2,0.02171788]
[1769774668950,13.7180743,2764.3,2762.5,0.02171788]
[1769774669150,3.29706279,2764.4,2762.5,0.02171788]
[1769774669151,13.7180743,2764.1,2762.5,0.02171788]
[1769774669383,13.7180743,2763.9,2762.7,0.02171788]
[1769774669580,15.16578173,2763.8,2762.7,0.02171788]
[1769774669783,15.16578173,2763.8,2762.9,0.02171788]
[1769774669988,15.16578173,2763.8,2762.7,0.02171788]
[1769774670290,13.7180743,2763.7,2762.8,0.02171788]
[1769774670491,13.7180743,2763.7,2762.4,0.02171788]
[1769774670788,13.7180743,2763.5,2762.6,0.02171788]
[1769774670964,14.4770743,2763.4,2762.3,0.02171788]
[1769774671386,13.7180743,2763.0,2761.9,0.02171788]
[1769774671563,13.7180743,2762.8,2761.6,0.02171788]
[1769774671890,13.7180743,2762.6,2761.6,0.02171788]
[1769774672108,2.20670743,2762.5,2761.6,0.02171788]
[1769774672324,15.92478173,2762.5,2761.6,0.02171788]
[1769774672600,15.92478173,2762.5,2761.4,0.02171788]
[1769774672986,15.92478173,2762.5,2761.1,0.02171788]
[1769774673190,15.92478173,2762.5,2761.3,0.02171788]
[1769774673802,13.7180743,2762.1,2760.7,0.02271788]
[1769774673971,0.1024,2762.4,2760.7,0.02271788]
[1769774673972,13.7180743,2761.9,2760.7,0.02271788]
[1769774674900,0.759,2762.0,2760.7,0.001]
[1769774674901,13.7180743,2761.7,2760.7,0.001]
[1769774675107,0.1024,2762.1,2761.0,0.02171788]
[1769774675406,14.4770743,2762.0,2760.8,0.02171788]
[1769774675607,13.7180743,2761.8,2760.9,0.02171788]
[1769774676017,13.7180743,2761.8,2760.9,0.001]
[1769774676973,0.759,2761.7,2760.9,0.001]
[1769774677177,14.98147137,2761.6,2760.9,0.001]
[1769774677806,14.98147137,2761.6,2760.5,0.001]
[1769774678812,14.98147137,2761.6,2760.5,0.02271788]
[1769774679011,14.98147137,2761.6,2760.5,0.001]
[1769774680788,14.98147137,2761.6,2760.6,0.02171788]
[1769774681010,0.759,2761.5,2760.8,0.02171788]
[1769774681213,15.86681108,2761.5,2760.3,0.00363867]
[1769774681418,14.29276394,2761.5,2760.5,0.02171788]
[1769774681721,14.29276394,2761.5,2760.3,0.00363867]
[1769774682813,14.29276394,2761.5,2760.5,0.02171788]
[1769774683226,14.29276394,2761.5,2760.3,0.00363867]
[1769774683379,13.53376394,2761.3,2760.3,0.00363867]
[1769774684115,13.53376394,2761.3,2760.2,0.02171788]
[1769774684613,13.53376394,2761.3,2759.5,0.02171788]
[1769774684816,13.53376394,2761.1,2759.7,0.02171788]
[1769774685016,13.53376394,2760.9,2759.6,0.02171788]
[1769774685214,13.53376394,2760.9,2759.5,0.02171788]
[1769774685637,13.53376394,2760.9,2759.6,0.02171788]
[1769774686194,13.53376394,2760.5,2759.2,0.02171788]
[1769774686405,6.42,2761.2,2759.4,0.02171788]
[1769774686406,14.29276394,2760.4,2759.4,0.02171788]
[1769774686720,14.29276394,2760.4,2759.2,0.02171788]
[1769774686915,14.29276394,2760.4,2759.4,0.01082194]
[1769774687117,14.29276394,2760.4,2759.2,0.02171788]
[1769774687319,13.53376394,2760.2,2759.2,0.02171788]
[1769774687705,13.53376394,2760.2,2759.8,0.001]
[1769774691418,13.53376394,2761.1,2759.8,0.001]
[1769774691625,3.42465278,2761.0,2760.1,0.02171788]
[1769774692515,1.99537639,2761.0,2760.4,0.02171788]
[1769774692818,0.1044,2761.7,2760.6,0.02171788]
[1769774692985,0.1044,2761.7,2760.4,0.02171788]
[1769774692986,0.1024,2761.5,2760.4,0.02171788]
[1769774693190,0.22906764,2761.4,2760.6,0.02171788]
[1769774693415,1.65834403,2761.4,2760.6,0.02171788]
[1769774693591,15.19210797,2761.4,2760.6,0.02171788]
[1769774694422,0.759,2761.3,2760.6,0.02171788]
[1769774694723,0.002,2761.7,2760.8,0.02171788]
[1769774694905,1.42927639,2761.6,2761.0,0.02171788]
[1769774695105,1.64830403,2761.6,2761.0,0.02171788]
[1769774695412,1.42927639,2761.5,2760.6,0.02171788]
[1769774695600,14.96304033,2761.5,2760.5,0.02171788]
[1769774695920,14.96304033,2761.5,2760.7,0.02171788]
[1769774696313,14.96304033,2761.5,2760.5,0.02171788]
[1769774696314,1.42927639,2761.5,2760.5,0.02171788]
[1769774696508,0.002,2761.7,2760.7,0.02171788]
[1769774696709,1.43127639,2761.7,2761.1,0.02171788]
[1769774697130,0.002,2761.9,2761.3,0.02171788]
[1769774697334,0.002,2761.9,2761.5,0.02171788]
[1769774697503,0.759,2762.2,2761.5,0.02171788]
[1769774697700,1.42927639,2762.2,2761.3,0.02171788]
[1769774697908,1.42927639,2762.2,2761.7,0.02171788]
[1769774698201,0.759,2762.5,2761.7,0.02171788]
[1769774698647,0.759,2762.5,2761.5,0.02171788]
[1769774700102,13.53376394,2762.4,2761.0,0.02171788]
[1769774700304,0.002,2761.5,2760.7,0.02171788]
[1769774700505,0.002,2761.5,2760.9,0.02171788]
[1769774700737,0.002,2761.5,2760.7,0.02171788]
[1769774701444,0.002,2761.5,2760.8,0.02171788]
[1769774701607,0.002,2761.5,2761.0,0.02171788]
[1769774701807,0.002,2761.5,2760.8,0.02171788]
[1769774702308,13.53576394,2761.5,2760.3,0.02171788]
[1769774702509,1.35357639,2761.4,2760.6,0.02171788]
[1769774702734,1.35357639,2761.4,2760.3,0.02171788]
[1769774702917,13.53376394,2761.2,2760.0,0.02271788]
[1769774703126,13.53376394,2761.2,2760.2,0.02171788]
[1769774703330,1.56463403,2761.2,2760.4,0.02171788]
[1769774703527,0.759,2761.3,2760.4,0.02171788]
[1769774703943,0.759,2761.3,2760.3,0.02171788]
[1769774704320,14.29276394,2761.3,2760.3,0.02171788]
[1769774704823,14.29276394,2761.3,2760.2,0.02171788]
[1769774707568,14.29276394,2761.3,2760.4,0.02171788]
[1769774707732,15.72224033,2761.3,2760.6,0.02171788]
[1769774708763,2.18847639,2761.3,2760.6,0.02171788]
[1769774709055,0.759,2761.3,2760.7,0.02171788]
[1769774709420,0.759,2761.3,2760.4,0.02171788]
[1769774709616,0.759,2761.3,2760.6,0.02171788]
[1769774710021,0.759,2761.3,2760.4,0.02171788]
[1769774710223,13.90162326,2761.3,2760.2,0.02171788]
[1769774710459,1.39016233,2761.2,2760.4,0.02171788]
[1769774710622,1.39016233,2761.2,2760.2,0.93393745]
[1769774710954,14.53278559,2761.2,2760.2,0.02171788]
[1769774711128,14.53278559,2761.2,2760.0,0.001]
[1769774711332,14.53278559,2761.2,2760.1,0.02171788]
[1769774712285,14.53278559,2761.2,2760.0,0.001]
[1769774712939,13.14262326,2761.0,2760.0,0.001]
[1769774713134,15.09888559,2760.9,2760.3,0.001]
[1769774713335,13.14262326,2760.7,2759.4,0.02171788]
[1769774713535,13.14262326,2760.7,2758.8,9.07775993]
[1769774713536,13.14262326,2760.6,2758.8,9.07775993]
[1769774713737,13.14262326,2760.6,2759.3,0.02171788]
[1769774714035,13.14262326,2760.4,2759.1,0.02171788]
[1769774714235,13.90162326,2760.3,2758.9,0.02171788]
[1769774714542,13.90162326,2760.3,2759.0,0.02171788]
[1769774715866,13.14262326,2760.1,2758.9,0.02171788]
[1769774716072,13.14262326,2759.9,2758.9,0.02171788]
[1769774716233,13.90162326,2759.8,2758.9,0.02171788]
[1769774716666,1.95626233,2760.5,2758.9,0.02171788]
[1769774716667,13.14262326,2760.1,2759.1,0.02171788]
[1769774716874,0.759,2760.0,2759.3,0.02171788]
[1769774717667,0.759,2760.0,2759.1,0.02171788]
[1769774717844,2.14916233,2760.0,2759.1,0.02171788]
[1769774718045,2.14916233,2760.0,2759.3,0.02171788]
[1769774719455,2.15016233,2760.0,2759.3,0.02171788]
[1769774720081,1.39016233,2760.0,2759.3,0.02171788]
[1769774720285,1.95626233,2760.5,2759.6,0.02171788]
[1769774720580,0.76,2760.8,2760.0,0.02171788]
[1769774720780,13.90262326,2760.8,2759.9,0.02171788]
[1769774720945,14.53288559,2760.7,2759.9,0.02171788]
[1769774722169,14.53288559,2760.7,2759.5,0.02171788]
[1769774722579,14.53288559,2760.7,2759.3,0.02171788]
[1769774722580,14.53288559,2760.7,2759.4,0.02171788]
[1769774722744,14.53288559,2760.7,2759.2,0.02171788]
[1769774722945,14.53288559,2760.7,2759.4,0.02171788]
[1769774723141,0.76,2760.8,2759.5,0.02171788]
[1769774723142,13.14262326,2760.5,2759.5,0.02171788]
[1769774723555,13.14262326,2760.5,2759.2,0.02171788]
[1769774723878,13.14262326,2760.5,2759.4,0.02171788]
[1769774724786,13.14262326,2760.5,2759.7,0.001]
[1769774726087,0.76,2760.4,2759.7,0.001]
[1769774726306,13.14262326,2760.8,2759.7,0.001]
[1769774726597,0.76,2760.7,2759.8,0.02171788]
[1769774727148,19.56262326,2761.1,2760.0,0.02171788]
[1769774727587,0.002,2761.7,2760.4,0.02171788]
[1769774727588,0.76,2761.3,2760.4,0.02171788]
[1769774727801,2.15046233,2761.3,2760.4,0.02171788]
[1769774728096,2.15046233,2761.3,2760.6,0.02171788]
[1769774728876,2.15046233,2761.3,2760.2,0.02171788]
[1769774729204,1.39046233,2761.3,2760.2,0.02171788]
[1769774729353,0.002,2761.7,2760.6,0.02171788]
[1769774731470,13.14262326,2761.3,2759.7,9.07875993]
[1769774731659,13.14262326,2761.3,2759.8,14.52171788]
[1769774732167,13.14262326,2761.3,2760.2,0.02171788]
[1769774732363,1.31426233,2761.2,2760.4,0.02171788]
[1769774732567,0.76,2761.6,2760.4,0.02171788]
[1769774732767,13.14262326,2761.4,2760.3,0.02171788]
[1769774733378,13.14262326,2761.4,2760.1,0.02171788]
[1769774733557,13.14262326,2761.4,2759.7,0.001]
[1769774733892,13.14262326,2761.0,2759.7,0.001]
[1769774734079,13.14262326,2760.8,2759.7,0.001]
[1769774735890,13.14262326,2760.6,2759.3,0.02171788]
[1769774736203,13.68485169,2760.1,2758.8,0.02171788]
[1769774736365,0.1024,2760.3,2759.5,0.001]
[1769774736366,14.44385169,2760.0,2759.5,0.001]
[1769774736570,14.30832419,2759.9,2759.5,0.001]
[1769774738383,14.30832419,2759.9,2758.7,0.001]
[1769774741620,12.86393902,2759.7,2758.7,0.001]
[1769774741774,13.62393902,2759.6,2758.7,0.001]